[Event "Early-Titled-Tuesday-Blitz-May-28-2024"]
[Site "Chess.com"]
[Date "2024.05.28"]
[Round "8"]
[White "Resignify"]
[Black "Dewarfd"]
[Result "1/2-1/2"]
[WhiteElo "2308"]
[BlackElo "2143"]
[TimeControl "180+1"]
[EndTime "9:31:05 PDT"]
[Termination "Game drawn by stalemate"]

1. e4 {[%clk 0:02:59.5]} 1... c5 {[%clk 0:02:59.1]} 2. Nc3 {[%clk 0:02:59.4]}
2... g6 {[%clk 0:02:51.7]} 3. g3 {[%clk 0:02:59.6]} 3... Bg7 {[%clk 0:02:51.5]}
4. Bg2 {[%clk 0:03:00]} 4... d6 {[%clk 0:02:51.8]} 5. d3 {[%clk 0:03:00.4]} 5...
Nc6 {[%clk 0:02:51.9]} 6. f4 {[%clk 0:03:00.4]} 6... Nf6 {[%clk 0:02:51.5]} 7.
Nf3 {[%clk 0:03:00.4]} 7... O-O {[%clk 0:02:50.7]} 8. O-O {[%clk 0:02:59.8]}
8... Rb8 {[%clk 0:02:50]} 9. Rb1 {[%clk 0:02:57.1]} 9... b5 {[%clk 0:02:41.8]}
10. a3 {[%clk 0:02:57.1]} 10... a5 {[%clk 0:02:39.1]} 11. h3 {[%clk 0:02:55.2]}
11... Nd7 {[%clk 0:02:35.6]} 12. Be3 {[%clk 0:02:52.3]} 12... e6 {[%clk
0:02:30.4]} 13. Kh2 {[%clk 0:02:38.4]} 13... b4 {[%clk 0:02:06.8]} 14. axb4
{[%clk 0:02:37.7]} 14... axb4 {[%clk 0:02:07.7]} 15. Ne2 {[%clk 0:02:36.6]}
15... Ra8 {[%clk 0:01:59.5]} 16. Rf2 {[%clk 0:02:22.1]} 16... Ra2 {[%clk
0:01:38.3]} 17. c3 {[%clk 0:02:22.4]} 17... bxc3 {[%clk 0:01:20.1]} 18. bxc3
{[%clk 0:02:21.8]} 18... Qa5 {[%clk 0:01:15.7]} 19. d4 {[%clk 0:02:07.3]} 19...
Ba6 {[%clk 0:01:05.8]} 20. Bf1 {[%clk 0:01:54.1]} 20... Bxe2 {[%clk 0:00:54]}
21. Rxe2 {[%clk 0:01:42.7]} 21... Rxe2+ {[%clk 0:00:35.6]} 22. Qxe2 {[%clk
0:01:42.6]} 22... Qxc3 {[%clk 0:00:35.6]} 23. dxc5 {[%clk 0:01:20.7]} 23... Nxc5
{[%clk 0:00:36.5]} 24. Rc1 {[%clk 0:01:17.6]} 24... Qb4 {[%clk 0:00:29.8]} 25.
Bxc5 {[%clk 0:01:10.4]} 25... dxc5 {[%clk 0:00:30.7]} 26. Qc4 {[%clk 0:01:08]}
26... Qxc4 {[%clk 0:00:27.5]} 27. Rxc4 {[%clk 0:01:08.9]} 27... Nd4 {[%clk
0:00:23.4]} 28. Bg2 {[%clk 0:00:58.8]} 28... Nxf3+ {[%clk 0:00:17.6]} 29. Bxf3
{[%clk 0:00:58.4]} 29... Bd4 {[%clk 0:00:17.9]} 30. e5 {[%clk 0:00:54.4]} 30...
Rb8 {[%clk 0:00:17.8]} 31. Rc2 {[%clk 0:00:46.7]} 31... Rb2 {[%clk 0:00:15.5]}
32. Rxb2 {[%clk 0:00:45.3]} 32... Bxb2 {[%clk 0:00:16.4]} 33. Be2 {[%clk
0:00:40.1]} 33... Kf8 {[%clk 0:00:15.9]} 34. Kg2 {[%clk 0:00:40]} 34... Ke7
{[%clk 0:00:16.1]} 35. Kf3 {[%clk 0:00:39.9]} 35... Kd7 {[%clk 0:00:16]} 36.
Bb5+ {[%clk 0:00:34.7]} 36... Kc7 {[%clk 0:00:15.7]} 37. Be8 {[%clk 0:00:26.1]}
37... f6 {[%clk 0:00:15.6]} 38. exf6 {[%clk 0:00:23.3]} 38... Bxf6 {[%clk
0:00:16.5]} 39. Bf7 {[%clk 0:00:11.7]} 39... e5 {[%clk 0:00:16.2]} 40. fxe5
{[%clk 0:00:10]} 40... Bxe5 {[%clk 0:00:17.1]} 41. g4 {[%clk 0:00:08.9]} 41...
Kd6 {[%clk 0:00:15.1]} 42. Bg8 {[%clk 0:00:07.8]} 42... h6 {[%clk 0:00:14.7]}
43. h4 {[%clk 0:00:07.4]} 43... Bf6 {[%clk 0:00:06.8]} 44. h5 {[%clk 0:00:06.8]}
44... gxh5 {[%clk 0:00:06.6]} 45. gxh5 {[%clk 0:00:06.8]} 45... Ke5 {[%clk
0:00:07.2]} 46. Kg4 {[%clk 0:00:05.7]} 46... Kd4 {[%clk 0:00:06.2]} 47. Bf7
{[%clk 0:00:05.4]} 47... Bg5 {[%clk 0:00:06.3]} 48. Bg8 {[%clk 0:00:04.8]} 48...
c4 {[%clk 0:00:07]} 49. Bh7 {[%clk 0:00:04.8]} 49... c3 {[%clk 0:00:07]} 50. Bg6
{[%clk 0:00:04.8]} 50... Ke3 {[%clk 0:00:07.4]} 51. Bh7 {[%clk 0:00:04.9]} 51...
Kd2 {[%clk 0:00:08.3]} 52. Bg6 {[%clk 0:00:04.8]} 52... Bd8 {[%clk 0:00:08.2]}
53. Bh7 {[%clk 0:00:03.8]} 53... Bc7 {[%clk 0:00:06]} 54. Bg6 {[%clk 0:00:03.4]}
54... c2 {[%clk 0:00:05.7]} 55. Bxc2 {[%clk 0:00:02.8]} 55... Kxc2 {[%clk
0:00:06.6]} 56. Kf3 {[%clk 0:00:02.8]} 56... Kd3 {[%clk 0:00:06.8]} 57. Kg2
{[%clk 0:00:03.1]} 57... Ke4 {[%clk 0:00:06.9]} 58. Kh1 {[%clk 0:00:04]} 58...
Kf4 {[%clk 0:00:06.5]} 59. Kg1 {[%clk 0:00:04.9]} 59... Kg5 {[%clk 0:00:06.9]}
60. Kh1 {[%clk 0:00:05.8]} 60... Kxh5 {[%clk 0:00:06]} 61. Kg1 {[%clk
0:00:06.7]} 61... Kg4 {[%clk 0:00:06.5]} 62. Kh1 {[%clk 0:00:07.6]} 62... Kg3
{[%clk 0:00:06.8]} 63. Kg1 {[%clk 0:00:08.5]} 63... Bb6+ {[%clk 0:00:06.1]} 64.
Kh1 {[%clk 0:00:09.4]} 64... h5 {[%clk 0:00:06.6]} 1/2-1/2

[Event "Early-Titled-Tuesday-Blitz-May-28-2024"]
[Site "Chess.com"]
[Date "2024.05.28"]
[Round "8"]
[White "Thjop"]
[Black "1stSecond"]
[Result "0-1"]
[WhiteElo "2644"]
[BlackElo "2927"]
[TimeControl "180+1"]
[EndTime "9:31:08 PDT"]
[Termination "1stSecond won by resignation"]

1. e4 {[%clk 0:03:00.9]} 1... c5 {[%clk 0:02:59.9]} 2. Nf3 {[%clk 0:03:00.8]}
2... e6 {[%clk 0:03:00.6]} 3. c3 {[%clk 0:02:59.6]} 3... Nf6 {[%clk 0:03:00.6]}
4. e5 {[%clk 0:02:58.3]} 4... Nd5 {[%clk 0:03:01.3]} 5. Bc4 {[%clk 0:02:57.7]}
5... Nb6 {[%clk 0:03:01.6]} 6. Bb3 {[%clk 0:02:58.2]} 6... c4 {[%clk 0:02:54.3]}
7. Bc2 {[%clk 0:02:58.1]} 7... Nc6 {[%clk 0:02:54.3]} 8. Qe2 {[%clk 0:02:58.3]}
8... g5 {[%clk 0:02:50.3]} 9. h3 {[%clk 0:02:52.8]} 9... Bg7 {[%clk 0:02:50.5]}
10. d4 {[%clk 0:02:45.7]} 10... cxd3 {[%clk 0:02:50.1]} 11. Bxd3 {[%clk
0:02:45.9]} 11... Qc7 {[%clk 0:02:45.7]} 12. Bxg5 {[%clk 0:02:45.6]} 12... Nxe5
{[%clk 0:02:46]} 13. Nxe5 {[%clk 0:02:45.4]} 13... Qxe5 {[%clk 0:02:44.5]} 14.
Qxe5 {[%clk 0:02:45.6]} 14... Bxe5 {[%clk 0:02:45.4]} 15. Nd2 {[%clk 0:02:44.6]}
15... h6 {[%clk 0:02:40.9]} 16. Be3 {[%clk 0:02:43]} 16... Nd5 {[%clk
0:02:41.4]} 17. Bd4 {[%clk 0:02:36.7]} 17... Bxd4 {[%clk 0:02:34.2]} 18. cxd4
{[%clk 0:02:37.6]} 18... Nb4 {[%clk 0:02:15.6]} 19. Ke2 {[%clk 0:02:33.5]} 19...
Nxd3 {[%clk 0:02:13.9]} 20. Kxd3 {[%clk 0:02:33.4]} 20... b6 {[%clk 0:02:14.6]}
21. Rhc1 {[%clk 0:02:20.5]} 21... Bb7 {[%clk 0:02:12.2]} 22. g3 {[%clk
0:02:20.8]} 22... h5 {[%clk 0:02:02.6]} 23. h4 {[%clk 0:02:20.1]} 23... Rg8
{[%clk 0:02:02.5]} 24. Nc4 {[%clk 0:02:00]} 24... Ke7 {[%clk 0:02:01.9]} 25. Ne5
{[%clk 0:02:00.2]} 25... f6 {[%clk 0:02:01.3]} 26. Nc4 {[%clk 0:01:55.4]} 26...
Rac8 {[%clk 0:01:52.9]} 27. Ne3 {[%clk 0:01:52]} 27... f5 {[%clk 0:01:47.9]} 28.
Rxc8 {[%clk 0:01:51.3]} 28... Rxc8 {[%clk 0:01:45.5]} 29. Re1 {[%clk 0:01:44.3]}
29... Kf6 {[%clk 0:01:45.1]} 30. Kd2 {[%clk 0:01:41.7]} 30... Bf3 {[%clk
0:01:19.5]} 31. Rc1 {[%clk 0:01:38.6]} 31... Rxc1 {[%clk 0:01:19.8]} 32. Kxc1
{[%clk 0:01:39.5]} 32... e5 {[%clk 0:01:14.9]} 33. dxe5+ {[%clk 0:01:32.9]}
33... Kxe5 {[%clk 0:01:15.8]} 34. Kd2 {[%clk 0:01:33.4]} 34... f4 {[%clk
0:01:03.4]} 35. Nc4+ {[%clk 0:01:31.5]} 35... Kd5 {[%clk 0:01:00.1]} 36. b3
{[%clk 0:01:25.5]} 36... Ke4 {[%clk 0:00:30.4]} 37. Nd6+ {[%clk 0:01:14.8]}
37... Ke5 {[%clk 0:00:30.4]} 38. Nc8 {[%clk 0:01:07.9]} 38... Kf5 {[%clk
0:00:24.6]} 39. Nxa7 {[%clk 0:00:55.7]} 39... Kg4 {[%clk 0:00:22.6]} 40. Nc8
{[%clk 0:00:55.7]} 40... fxg3 {[%clk 0:00:20.4]} 41. fxg3 {[%clk 0:00:56.6]}
41... Kxg3 {[%clk 0:00:21.3]} 42. Nxb6 {[%clk 0:00:56.6]} 42... Kxh4 {[%clk
0:00:21.9]} 43. Nxd7 {[%clk 0:00:51]} 43... Kg3 {[%clk 0:00:22.4]} 44. Ne5
{[%clk 0:00:44.2]} 44... h4 {[%clk 0:00:22.3]} 45. Ke1 {[%clk 0:00:41.7]} 45...
h3 {[%clk 0:00:20]} 46. Nd3 {[%clk 0:00:41.3]} 46... h2 {[%clk 0:00:11.9]} 47.
Nf2 {[%clk 0:00:41.2]} 47... Bd5 {[%clk 0:00:12.5]} 48. Ke2 {[%clk 0:00:36.5]}
48... Kf4 {[%clk 0:00:07.9]} 49. Nd3+ {[%clk 0:00:31.1]} 49... Kg3 {[%clk
0:00:04.3]} 50. Nf2 {[%clk 0:00:31.1]} 50... Kg2 {[%clk 0:00:03.9]} 51. Ke3
{[%clk 0:00:15.8]} 51... Be6 {[%clk 0:00:04.5]} 52. Ke2 {[%clk 0:00:12.8]} 52...
Bd7 {[%clk 0:00:04.7]} 53. Ke3 {[%clk 0:00:12.4]} 53... Bb5 {[%clk 0:00:03.2]}
54. a4 {[%clk 0:00:10.9]} 54... Bd7 {[%clk 0:00:03.4]} 55. a5 {[%clk 0:00:09.3]}
55... Bb5 {[%clk 0:00:03.7]} 56. b4 {[%clk 0:00:09.7]} 56... Ba6 {[%clk
0:00:04]} 57. Nh1 {[%clk 0:00:02.8]} 57... Kxh1 {[%clk 0:00:04]} 58. Kf2 {[%clk
0:00:03.7]} 58... Bb5 {[%clk 0:00:03.9]} 59. a6 {[%clk 0:00:03.7]} 59... Bxa6
{[%clk 0:00:03.2]} 60. b5 {[%clk 0:00:04.6]} 60... Bb7 {[%clk 0:00:02.3]} 61.
Ke1 {[%clk 0:00:05.4]} 61... Kg1 {[%clk 0:00:01.9]} 0-1

[Event "Early-Titled-Tuesday-Blitz-May-28-2024"]
[Site "Chess.com"]
[Date "2024.05.28"]
[Round "8"]
[White "VacheH009"]
[Black "AlexandraSamaganova"]
[Result "1-0"]
[WhiteElo "2551"]
[BlackElo "2397"]
[TimeControl "180+1"]
[EndTime "9:31:09 PDT"]
[Termination "VacheH009 won by checkmate"]

1. e4 {[%clk 0:03:00.5]} 1... c5 {[%clk 0:02:56.7]} 2. Nf3 {[%clk 0:02:58.5]}
2... e6 {[%clk 0:02:55.7]} 3. c3 {[%clk 0:02:53.7]} 3... d5 {[%clk 0:02:53.9]}
4. exd5 {[%clk 0:02:52.8]} 4... exd5 {[%clk 0:02:53.7]} 5. d4 {[%clk 0:02:50.6]}
5... Nc6 {[%clk 0:02:43.8]} 6. Bb5 {[%clk 0:02:31.6]} 6... Bd6 {[%clk
0:02:26.8]} 7. dxc5 {[%clk 0:02:25.9]} 7... Bxc5 {[%clk 0:02:26.3]} 8. O-O
{[%clk 0:02:25]} 8... Ne7 {[%clk 0:02:14.6]} 9. Re1 {[%clk 0:02:19]} 9... O-O
{[%clk 0:02:09.1]} 10. Be3 {[%clk 0:01:58.2]} 10... Bd6 {[%clk 0:02:06.5]} 11.
h3 {[%clk 0:01:55.7]} 11... Bf5 {[%clk 0:01:55.4]} 12. Bd3 {[%clk 0:01:50]}
12... Bg6 {[%clk 0:01:50.7]} 13. Bxg6 {[%clk 0:01:45.8]} 13... hxg6 {[%clk
0:01:41.9]} 14. Nbd2 {[%clk 0:01:46.7]} 14... Bc7 {[%clk 0:01:40.5]} 15. Nb3
{[%clk 0:01:44.1]} 15... Re8 {[%clk 0:01:19.4]} 16. Qd2 {[%clk 0:01:27.7]} 16...
b6 {[%clk 0:01:10.4]} 17. Bf4 {[%clk 0:01:24.6]} 17... Qd7 {[%clk 0:00:49.7]}
18. Bxc7 {[%clk 0:01:15.8]} 18... Qxc7 {[%clk 0:00:49.4]} 19. Re2 {[%clk
0:01:05.3]} 19... Kf8 {[%clk 0:00:34.3]} 20. Rae1 {[%clk 0:01:01.2]} 20... a5
{[%clk 0:00:33.7]} 21. Qg5 {[%clk 0:00:51.4]} 21... f6 {[%clk 0:00:23]} 22. Qh4
{[%clk 0:00:42.2]} 22... Kf7 {[%clk 0:00:22]} 23. Nbd4 {[%clk 0:00:41.6]} 23...
Nxd4 {[%clk 0:00:17.9]} 24. Nxd4 {[%clk 0:00:42.5]} 24... Nc6 {[%clk 0:00:12.3]}
25. Ne6 {[%clk 0:00:28.7]} 25... Qd6 {[%clk 0:00:05.4]} 26. g3 {[%clk
0:00:13.3]} 26... Ne5 {[%clk 0:00:03.3]} 27. Nd4 {[%clk 0:00:13.5]} 27... Nc6
{[%clk 0:00:02.3]} 28. Rxe8 {[%clk 0:00:09.7]} 28... Rxe8 {[%clk 0:00:01.9]} 29.
Rxe8 {[%clk 0:00:10.2]} 29... Kxe8 {[%clk 0:00:02.8]} 30. Qg4 {[%clk 0:00:06.7]}
30... Kf7 {[%clk 0:00:02.8]} 31. Nf3 {[%clk 0:00:05.7]} 31... Ne5 {[%clk
0:00:02.5]} 32. Nxe5+ {[%clk 0:00:03.4]} 32... fxe5 {[%clk 0:00:02.7]} 33. Qg5
{[%clk 0:00:02.8]} 33... d4 {[%clk 0:00:02.6]} 34. cxd4 {[%clk 0:00:02.8]} 34...
exd4 {[%clk 0:00:03.1]} 35. Kf1 {[%clk 0:00:03.5]} 35... d3 {[%clk 0:00:03.2]}
36. Ke1 {[%clk 0:00:03.7]} 36... Qe7+ {[%clk 0:00:02.1]} 37. Qxe7+ {[%clk
0:00:03.7]} 37... Kxe7 {[%clk 0:00:02.5]} 38. Kd2 {[%clk 0:00:04.4]} 38... Kd6
{[%clk 0:00:02.5]} 39. Kxd3 {[%clk 0:00:05.3]} 39... Kd5 {[%clk 0:00:02.6]} 40.
h4 {[%clk 0:00:03.8]} 40... b5 {[%clk 0:00:02.7]} 41. f3 {[%clk 0:00:03.2]}
41... Ke5 {[%clk 0:00:02.4]} 42. Ke3 {[%clk 0:00:03.4]} 42... Kf5 {[%clk
0:00:01.6]} 43. g4+ {[%clk 0:00:03.5]} 43... Ke5 {[%clk 0:00:01.7]} 44. f4+
{[%clk 0:00:04]} 44... Ke6 {[%clk 0:00:01.8]} 45. Ke4 {[%clk 0:00:04.3]} 45...
b4 {[%clk 0:00:02]} 46. Kd4 {[%clk 0:00:04.6]} 46... Kd6 {[%clk 0:00:01.5]} 47.
Kc4 {[%clk 0:00:04.9]} 47... a4 {[%clk 0:00:01.5]} 48. Kxb4 {[%clk 0:00:05]}
48... Kd5 {[%clk 0:00:02.4]} 49. Kxa4 {[%clk 0:00:05.1]} 49... Ke4 {[%clk
0:00:03.3]} 50. b4 {[%clk 0:00:05.7]} 50... Kxf4 {[%clk 0:00:03.8]} 51. b5
{[%clk 0:00:06.3]} 51... Kxg4 {[%clk 0:00:04.4]} 52. b6 {[%clk 0:00:06.9]} 52...
Kxh4 {[%clk 0:00:05]} 53. b7 {[%clk 0:00:07.8]} 53... g5 {[%clk 0:00:05.8]} 54.
b8=Q {[%clk 0:00:08.7]} 54... g4 {[%clk 0:00:06.4]} 55. Qh2+ {[%clk 0:00:09.3]}
55... Kg5 {[%clk 0:00:06.9]} 56. Qg3 {[%clk 0:00:10.2]} 56... g6 {[%clk
0:00:06.8]} 57. Kb5 {[%clk 0:00:11.1]} 57... Kh5 {[%clk 0:00:07.2]} 58. a4
{[%clk 0:00:12]} 58... g5 {[%clk 0:00:08]} 59. a5 {[%clk 0:00:12.9]} 59... Kg6
{[%clk 0:00:08.6]} 60. a6 {[%clk 0:00:13.8]} 60... Kf5 {[%clk 0:00:09.5]} 61. a7
{[%clk 0:00:14.7]} 61... Ke4 {[%clk 0:00:10.4]} 62. a8=Q+ {[%clk 0:00:14.7]}
62... Kd4 {[%clk 0:00:11.3]} 63. Qd8+ {[%clk 0:00:13.4]} 63... Ke4 {[%clk
0:00:11.1]} 64. Qdd3# {[%clk 0:00:13.8]} 1-0

[Event "Early-Titled-Tuesday-Blitz-May-28-2024"]
[Site "Chess.com"]
[Date "2024.05.28"]
[Round "8"]
[White "David_George21"]
[Black "lefonghua"]
[Result "1-0"]
[WhiteElo "2416"]
[BlackElo "2545"]
[TimeControl "180+1"]
[EndTime "9:31:11 PDT"]
[Termination "David_George21 won by resignation"]

1. e4 {[%clk 0:03:00.9]} 1... f5 {[%clk 0:02:58.8]} 2. exf5 {[%clk 0:02:41.3]}
2... Nf6 {[%clk 0:02:58.9]} 3. Be2 {[%clk 0:02:40.6]} 3... e6 {[%clk 0:02:41.1]}
4. Bh5+ {[%clk 0:02:34.3]} 4... Ke7 {[%clk 0:02:41.5]} 5. fxe6 {[%clk
0:02:30.2]} 5... d5 {[%clk 0:02:41.6]} 6. d3 {[%clk 0:02:22.5]} 6... Bxe6 {[%clk
0:02:40.8]} 7. Be2 {[%clk 0:02:21.9]} 7... Nc6 {[%clk 0:02:34.9]} 8. Nf3 {[%clk
0:02:21]} 8... Kd7 {[%clk 0:02:34.6]} 9. Ng5 {[%clk 0:02:20.3]} 9... Qe8 {[%clk
0:02:32.7]} 10. Nxe6 {[%clk 0:02:15.3]} 10... Qxe6 {[%clk 0:02:33.6]} 11. O-O
{[%clk 0:02:15.2]} 11... Bd6 {[%clk 0:02:32]} 12. Re1 {[%clk 0:02:07.6]} 12...
Rae8 {[%clk 0:02:29.9]} 13. Nd2 {[%clk 0:02:01.3]} 13... Nd4 {[%clk 0:02:23.4]}
14. Kf1 {[%clk 0:01:52.9]} 14... Rhf8 {[%clk 0:02:06.7]} 15. Nf3 {[%clk
0:01:51]} 15... Ng4 {[%clk 0:02:03.7]} 16. Nxd4 {[%clk 0:01:34]} 16... Rxf2+
{[%clk 0:01:53.1]} 17. Kg1 {[%clk 0:01:33.9]} 17... Bxh2+ {[%clk 0:01:38]} 18.
Kh1 {[%clk 0:01:32.9]} 18... Rxe2 {[%clk 0:00:55.6]} 19. Nxe6 {[%clk 0:00:52.5]}
19... Rxe1+ {[%clk 0:00:47.2]} 20. Qxe1 {[%clk 0:00:53.4]} 20... Rxe6 {[%clk
0:00:47.6]} 21. Qh4 {[%clk 0:00:38.9]} 21... h5 {[%clk 0:00:30.3]} 22. Bg5
{[%clk 0:00:34.5]} 22... g6 {[%clk 0:00:22]} 23. Re1 {[%clk 0:00:17.9]} 23...
Be5 {[%clk 0:00:21.9]} 24. c3 {[%clk 0:00:12.8]} 24... c5 {[%clk 0:00:18.4]} 25.
Bd2 {[%clk 0:00:09]} 25... Bf6 {[%clk 0:00:17.2]} 26. Qg3 {[%clk 0:00:07.2]}
26... Be5 {[%clk 0:00:14.2]} 27. Qf3 {[%clk 0:00:07.4]} 27... Kd6 {[%clk
0:00:12.1]} 28. d4 {[%clk 0:00:06.9]} 28... cxd4 {[%clk 0:00:11.3]} 29. cxd4
{[%clk 0:00:07.3]} 29... Bxd4 {[%clk 0:00:12]} 30. Rxe6+ {[%clk 0:00:07.6]}
30... Kxe6 {[%clk 0:00:12.9]} 31. Qe2+ {[%clk 0:00:07.3]} 31... Be5 {[%clk
0:00:09.5]} 32. Bf4 {[%clk 0:00:07]} 32... Kf5 {[%clk 0:00:09.2]} 33. Bxe5
{[%clk 0:00:07.3]} 33... Nxe5 {[%clk 0:00:10.1]} 34. Qb5 {[%clk 0:00:07.4]}
34... Ke4 {[%clk 0:00:10]} 35. Qxb7 {[%clk 0:00:07.3]} 35... a5 {[%clk 0:00:10]}
36. Kg1 {[%clk 0:00:06.4]} 36... h4 {[%clk 0:00:09.4]} 37. Kf2 {[%clk
0:00:06.5]} 37... g5 {[%clk 0:00:08.8]} 38. Ke2 {[%clk 0:00:06.8]} 38... g4
{[%clk 0:00:08.5]} 39. Qh7+ {[%clk 0:00:07]} 39... Kf4 {[%clk 0:00:07.2]} 40.
Qxh4 {[%clk 0:00:07.5]} 40... d4 {[%clk 0:00:07.9]} 41. Qf2+ {[%clk 0:00:07.3]}
41... Ke4 {[%clk 0:00:08.1]} 42. Qf8 {[%clk 0:00:07.5]} 42... d3+ {[%clk
0:00:08.4]} 43. Kd1 {[%clk 0:00:07.9]} 43... Nc4 {[%clk 0:00:07.5]} 44. Qe8+
{[%clk 0:00:07.8]} 44... Kd4 {[%clk 0:00:08]} 45. Qd7+ {[%clk 0:00:08.1]} 45...
Ke4 {[%clk 0:00:08.4]} 46. Qxg4+ {[%clk 0:00:08.2]} 46... Kd5 {[%clk 0:00:08.7]}
47. Qf3+ {[%clk 0:00:08.5]} 47... Kd4 {[%clk 0:00:09.1]} 48. Qf4+ {[%clk
0:00:08.9]} 48... Kd5 {[%clk 0:00:09.3]} 49. b3 {[%clk 0:00:09]} 49... Nd6
{[%clk 0:00:07.2]} 50. Kd2 {[%clk 0:00:09]} 50... Ne4+ {[%clk 0:00:07]} 51. Kxd3
{[%clk 0:00:09.4]} 51... Nc5+ {[%clk 0:00:07.7]} 52. Kd2 {[%clk 0:00:09.3]}
52... Ne4+ {[%clk 0:00:08.2]} 53. Ke3 {[%clk 0:00:09.9]} 53... Nc5 {[%clk
0:00:08.4]} 54. Qf5+ {[%clk 0:00:10.4]} 54... Kc6 {[%clk 0:00:08.9]} 55. Kd4
{[%clk 0:00:10.6]} 55... Nd7 {[%clk 0:00:09]} 56. Qe6+ {[%clk 0:00:10.6]} 56...
Kc7 {[%clk 0:00:09.4]} 57. Kd5 {[%clk 0:00:10.8]} 57... a4 {[%clk 0:00:09.3]}
58. Qd6+ {[%clk 0:00:10.8]} 58... Kc8 {[%clk 0:00:09.5]} 59. Ke6 {[%clk
0:00:11]} 59... Nb8 {[%clk 0:00:08.7]} 60. Ke7 {[%clk 0:00:10.9]} 60... axb3
{[%clk 0:00:08.5]} 61. axb3 {[%clk 0:00:10.7]} 61... Kb7 {[%clk 0:00:09.2]} 62.
g4 {[%clk 0:00:09.8]} 62... Na6 {[%clk 0:00:09.1]} 63. Kf6 {[%clk 0:00:09.7]}
63... Nc7 {[%clk 0:00:09.3]} 64. g5 {[%clk 0:00:09.9]} 64... Kc8 {[%clk
0:00:09.7]} 65. Qe7 {[%clk 0:00:09.9]} 65... Nd5+ {[%clk 0:00:09.1]} 66. Ke6
{[%clk 0:00:10.4]} 66... Nf4+ {[%clk 0:00:08.7]} 67. Kf5 {[%clk 0:00:10.3]}
67... Nd5 {[%clk 0:00:09.1]} 68. Qe6+ {[%clk 0:00:10.8]} 68... Kc7 {[%clk
0:00:09.2]} 69. Qxd5 {[%clk 0:00:11.7]} 69... Kb6 {[%clk 0:00:09.7]} 70. g6
{[%clk 0:00:12.1]} 70... Kc7 {[%clk 0:00:10.6]} 71. g7 {[%clk 0:00:12.8]} 71...
Kb6 {[%clk 0:00:11.1]} 72. g8=Q {[%clk 0:00:13.7]} 72... Kc7 {[%clk 0:00:12]}
73. Qge6 {[%clk 0:00:14.1]} 1-0

[Event "Early-Titled-Tuesday-Blitz-May-28-2024"]
[Site "Chess.com"]
[Date "2024.05.28"]
[Round "8"]
[White "ThetNaung291"]
[Black "N_I_Chess"]
[Result "1-0"]
[WhiteElo "2350"]
[BlackElo "2224"]
[TimeControl "180+1"]
[EndTime "9:31:15 PDT"]
[Termination "ThetNaung291 won by checkmate"]

1. d4 {[%clk 0:02:59.3]} 1... Nf6 {[%clk 0:02:59.8]} 2. c4 {[%clk 0:02:57.7]}
2... e6 {[%clk 0:02:59.4]} 3. Nf3 {[%clk 0:02:56.8]} 3... Bb4+ {[%clk
0:02:59.1]} 4. Bd2 {[%clk 0:02:56.6]} 4... Qe7 {[%clk 0:03:00]} 5. a3 {[%clk
0:02:55.7]} 5... Bxd2+ {[%clk 0:02:59.5]} 6. Qxd2 {[%clk 0:02:55.6]} 6... O-O
{[%clk 0:03:00.4]} 7. Nc3 {[%clk 0:02:55.4]} 7... d6 {[%clk 0:03:00.6]} 8. e3
{[%clk 0:02:55.1]} 8... e5 {[%clk 0:03:01.2]} 9. Qc2 {[%clk 0:02:37.9]} 9... Bg4
{[%clk 0:03:00.2]} 10. dxe5 {[%clk 0:02:34.9]} 10... dxe5 {[%clk 0:03:00.3]} 11.
Be2 {[%clk 0:02:34.7]} 11... Nbd7 {[%clk 0:02:59.9]} 12. O-O {[%clk 0:02:34.1]}
12... c6 {[%clk 0:02:58.7]} 13. h3 {[%clk 0:02:30.4]} 13... Bh5 {[%clk
0:02:58.5]} 14. Rfd1 {[%clk 0:02:28.4]} 14... a5 {[%clk 0:02:56.4]} 15. Nd2
{[%clk 0:02:18]} 15... Bg6 {[%clk 0:02:38.8]} 16. Bd3 {[%clk 0:02:17.2]} 16...
Bxd3 {[%clk 0:02:31.7]} 17. Qxd3 {[%clk 0:02:17]} 17... Nc5 {[%clk 0:02:31.2]}
18. Qc2 {[%clk 0:02:16.2]} 18... a4 {[%clk 0:02:25.2]} 19. Nde4 {[%clk
0:02:12.7]} 19... Nfxe4 {[%clk 0:02:19.6]} 20. Nxe4 {[%clk 0:02:12.5]} 20... Nb3
{[%clk 0:02:20.3]} 21. Rab1 {[%clk 0:02:11.7]} 21... Rfd8 {[%clk 0:02:16.3]} 22.
Rxd8+ {[%clk 0:02:04.8]} 22... Rxd8 {[%clk 0:02:17.2]} 23. Rd1 {[%clk
0:02:04.7]} 23... h6 {[%clk 0:02:10.8]} 24. Nc3 {[%clk 0:02:02.7]} 24... Ra8
{[%clk 0:01:36.2]} 25. Nxa4 {[%clk 0:01:57]} 25... Rxa4 {[%clk 0:01:33.9]} 26.
Qxb3 {[%clk 0:01:56.9]} 26... Ra8 {[%clk 0:01:32.5]} 27. Qb6 {[%clk 0:01:50.9]}
27... g6 {[%clk 0:01:26.1]} 28. c5 {[%clk 0:01:38.9]} 28... Kg7 {[%clk
0:01:24.2]} 29. Rd6 {[%clk 0:01:38.1]} 29... Ra4 {[%clk 0:00:58.6]} 30. Qb3
{[%clk 0:01:18.8]} 30... Ra5 {[%clk 0:00:55.2]} 31. Qc3 {[%clk 0:01:17.3]} 31...
Ra8 {[%clk 0:00:46.6]} 32. f4 {[%clk 0:01:13.3]} 32... Re8 {[%clk 0:00:43.5]}
33. b4 {[%clk 0:01:07.9]} 33... Kg8 {[%clk 0:00:39.9]} 34. Qxe5 {[%clk
0:01:01.7]} 34... Qxe5 {[%clk 0:00:40.1]} 35. fxe5 {[%clk 0:01:01.8]} 35... Rxe5
{[%clk 0:00:41]} 36. Rd7 {[%clk 0:00:50.8]} 36... Rxe3 {[%clk 0:00:39.5]} 37. a4
{[%clk 0:00:48.9]} 37... Ra3 {[%clk 0:00:30.9]} 38. a5 {[%clk 0:00:48.3]} 38...
Kg7 {[%clk 0:00:11]} 39. Rxb7 {[%clk 0:00:47.6]} 39... h5 {[%clk 0:00:05.4]} 40.
Rb6 {[%clk 0:00:46.6]} 40... Ra4 {[%clk 0:00:02.6]} 41. h4 {[%clk 0:00:44.6]}
41... Kf8 {[%clk 0:00:02.2]} 42. Kf2 {[%clk 0:00:40.3]} 42... Ke7 {[%clk
0:00:02.2]} 43. Ke3 {[%clk 0:00:40.3]} 43... Kd7 {[%clk 0:00:02.7]} 44. Kd4
{[%clk 0:00:39.2]} 44... Kc7 {[%clk 0:00:02.4]} 45. a6 {[%clk 0:00:30.5]} 45...
Kc8 {[%clk 0:00:01]} 46. Ke5 {[%clk 0:00:29.1]} 46... Kc7 {[%clk 0:00:01]} 47.
Kf6 {[%clk 0:00:28.3]} 47... Ra1 {[%clk 0:00:01]} 48. Kxf7 {[%clk 0:00:27]}
48... Rf1+ {[%clk 0:00:01.9]} 49. Kxg6 {[%clk 0:00:26.8]} 49... Rf4 {[%clk
0:00:02.8]} 50. Kxh5 {[%clk 0:00:26.2]} 50... Rf8 {[%clk 0:00:02.4]} 51. g4
{[%clk 0:00:25.9]} 51... Rg8 {[%clk 0:00:02.3]} 52. g5 {[%clk 0:00:25.8]} 52...
Rh8+ {[%clk 0:00:02.3]} 53. Kg4 {[%clk 0:00:25.9]} 53... Ra8 {[%clk 0:00:03.2]}
54. g6 {[%clk 0:00:25.2]} 54... Kd7 {[%clk 0:00:03.6]} 55. h5 {[%clk 0:00:24.5]}
55... Ke6 {[%clk 0:00:04.2]} 56. Rxc6+ {[%clk 0:00:23.9]} 56... Ke7 {[%clk
0:00:04.1]} 57. h6 {[%clk 0:00:23.1]} 57... Rh8 {[%clk 0:00:04]} 58. h7 {[%clk
0:00:22.7]} 58... Rd8 {[%clk 0:00:04.4]} 59. g7 {[%clk 0:00:21.5]} 59... Kf7
{[%clk 0:00:04.8]} 60. g8=Q+ {[%clk 0:00:20.4]} 60... Rxg8+ {[%clk 0:00:04.9]}
61. hxg8=Q+ {[%clk 0:00:21]} 61... Kxg8 {[%clk 0:00:05.8]} 62. Kf5 {[%clk
0:00:20.6]} 62... Kg7 {[%clk 0:00:06.7]} 63. Rc7+ {[%clk 0:00:19.9]} 63... Kf8
{[%clk 0:00:07.6]} 64. Ke6 {[%clk 0:00:19.4]} 64... Ke8 {[%clk 0:00:08.5]} 65.
Rc8# {[%clk 0:00:19.2]} 1-0